[Event "Titled Tuesday Blitz May 24 Late 2022"]
[White "Kopczynski, Michal"]
[Black "Jeet, Jain"]
[WhiteFideId "1124200"]
[BlackFideId "5073022"]
[WhiteElo "2235"]
[BlackElo "2028"]
[Result "0-1"]
[Round "11"]
[TimeControl "180+1"]
[Date "2022.05.24"]
[WhiteClock "0:00:20"]
[BlackClock "0:01:00"]

1. e4 {[%clk 0:03:00]}  d6 {[%clk 0:03:00]} 2. d4 {[%clk 0:03:00]}  Nc6 {[%clk 0:02:59]} 3. Nc3 {[%clk 0:03:01]}  g6 {[%clk 0:02:58]} 4. Be3 {[%clk 0:03:00]}  Bg7 {[%clk 0:02:59]} 5. Qd2 {[%clk 0:03:01]}  e5 {[%clk 0:02:58]} 6. d5 {[%clk 0:03:01]}  Nd4 {[%clk 0:02:58]} 7. O-O-O {[%clk 0:03:01]}  Ne7 {[%clk 0:02:55]} 8. Nge2 {[%clk 0:02:59]}  Nxe2+ {[%clk 0:02:52]} 9. Bxe2 {[%clk 0:03:00]}  f5 {[%clk 0:02:53]} 10. f3 {[%clk 0:02:59]}  O-O {[%clk 0:02:47]} 11. h4 {[%clk 0:03:00]}  f4 {[%clk 0:02:47]} 12. Bf2 {[%clk 0:02:59]}  h5 {[%clk 0:02:41]} 13. g3 {[%clk 0:02:44]}  Bh6 {[%clk 0:02:41]} 14. gxf4 {[%clk 0:02:42]}  Bxf4 {[%clk 0:02:38]} 15. Be3 {[%clk 0:02:42]}  Bd7 {[%clk 0:02:30]} 16. Rhg1 {[%clk 0:02:39]}  Kh7 {[%clk 0:02:27]} 17. Bxf4 {[%clk 0:02:36]}  Rxf4 {[%clk 0:02:27]} 18. Rdf1 {[%clk 0:02:21]}  Rxh4 {[%clk 0:02:20]} 19. f4 {[%clk 0:02:19]}  Rxf4 {[%clk 0:02:20]} 20. Rxf4 {[%clk 0:02:20]}  exf4 {[%clk 0:02:20]} 21. Qxf4 {[%clk 0:02:20]}  Qf8 {[%clk 0:02:21]} 22. Qh4 {[%clk 0:02:14]}  Ng8 {[%clk 0:01:54]} 23. Kb1 {[%clk 0:01:59]}  Qf6 {[%clk 0:01:52]} 24. Qh2 {[%clk 0:01:48]}  Nh6 {[%clk 0:01:51]} 25. a3 {[%clk 0:01:44]}  Re8 {[%clk 0:01:44]} 26. Bd3 {[%clk 0:01:37]}  Ng4 {[%clk 0:01:43]} 27. e5 {[%clk 0:01:01]}  Rxe5 {[%clk 0:01:29]} 28. Qd2 {[%clk 0:00:36]}  Bf5 {[%clk 0:01:12]} 29. Bxf5 {[%clk 0:00:34]}  Rxf5 {[%clk 0:01:11]} 30. Ne4 {[%clk 0:00:30]}  Qe5 {[%clk 0:01:09]} 31. Re1 {[%clk 0:00:24]}  Qxd5 {[%clk 0:01:08]} 32. Qc3 {[%clk 0:00:20]}  Re5 {[%clk 0:01:04]} 33. Qxc7+ {[%clk 0:00:20]}  Kh6 {[%clk 0:01:00]} 0-1


[Site "https://www.chess.com"]

[Event "Titled Tuesday Blitz May 24 Late 2022"]
[White "Lehtosaari, Mauri"]
[Black "Medeiros Jr, Francisco De Assis"]
[WhiteFideId "501999"]
[BlackFideId "2114267"]
[WhiteElo "2449"]
[BlackElo "2003"]
[Result "0-1"]
[Round "11"]
[TimeControl "180+1"]
[Date "2022.05.25"]
[WhiteClock "0:01:25"]
[BlackClock "0:00:22"]

1. d4 {[%clk 0:03:00]}  d5 {[%clk 0:02:57]} 2. Nf3 {[%clk 0:03:01]}  Nf6 {[%clk 0:02:57]} 3. Bg5 {[%clk 0:03:02]}  Qd6 {[%clk 0:02:55]} 4. c3 {[%clk 0:03:01]}  Ne4 {[%clk 0:02:51]} 5. Bh4 {[%clk 0:02:59]}  Qh6 {[%clk 0:02:49]} 6. e3 {[%clk 0:02:55]}  g5 {[%clk 0:02:47]} 7. Bg3 {[%clk 0:02:54]}  Nxg3 {[%clk 0:02:47]} 8. fxg3 {[%clk 0:02:55]}  g4 {[%clk 0:02:46]} 9. Ne5 {[%clk 0:02:50]}  Qxe3+ {[%clk 0:02:41]} 10. Be2 {[%clk 0:02:50]}  Bf5 {[%clk 0:02:23]} 11. Qd2 {[%clk 0:02:41]}  Qxd2+ {[%clk 0:02:21]} 12. Nxd2 {[%clk 0:02:40]}  h5 {[%clk 0:02:20]} 13. O-O {[%clk 0:02:37]}  e6 {[%clk 0:02:21]} 14. Rae1 {[%clk 0:02:21]}  Be7 {[%clk 0:02:21]} 15. Nb3 {[%clk 0:02:17]}  O-O {[%clk 0:02:08]} 16. Bd3 {[%clk 0:02:06]}  Bxd3 {[%clk 0:02:04]} 17. Nxd3 {[%clk 0:02:07]}  Bd6 {[%clk 0:02:05]} 18. Nf4 {[%clk 0:01:58]}  Bxf4 {[%clk 0:02:04]} 19. Rxf4 {[%clk 0:01:59]}  Nd7 {[%clk 0:02:01]} 20. Nc1 {[%clk 0:01:57]}  Kg7 {[%clk 0:01:56]} 21. Nd3 {[%clk 0:01:57]}  Rae8 {[%clk 0:01:52]} 22. Ne5 {[%clk 0:01:56]}  Nxe5 {[%clk 0:01:50]} 23. Rxe5 {[%clk 0:01:57]}  Kg6 {[%clk 0:01:45]} 24. h3 {[%clk 0:01:56]}  f6 {[%clk 0:01:43]} 25. Re1 {[%clk 0:01:52]}  f5 {[%clk 0:01:40]} 26. Rf2 {[%clk 0:01:52]}  a5 {[%clk 0:01:30]} 27. Rfe2 {[%clk 0:01:50]}  Kf6 {[%clk 0:01:28]} 28. a3 {[%clk 0:01:48]}  b5 {[%clk 0:01:25]} 29. Kf2 {[%clk 0:01:45]}  Re7 {[%clk 0:01:20]} 30. Ke3 {[%clk 0:01:45]}  Rb8 {[%clk 0:01:11]} 31. Kd3 {[%clk 0:01:37]}  b4 {[%clk 0:01:08]} 32. axb4 {[%clk 0:01:36]}  axb4 {[%clk 0:01:09]} 33. c4 {[%clk 0:01:37]}  c6 {[%clk 0:01:07]} 34. Ra1 {[%clk 0:01:35]}  gxh3 {[%clk 0:01:03]} 35. gxh3 {[%clk 0:01:35]}  Rg8 {[%clk 0:01:03]} 36. Re3 {[%clk 0:01:35]}  Reg7 {[%clk 0:01:03]} 37. Rg1 {[%clk 0:01:32]}  f4 {[%clk 0:01:03]} 38. Rf3 {[%clk 0:01:28]}  Rxg3 {[%clk 0:01:02]} 39. Rf1 {[%clk 0:01:26]}  Kf5 {[%clk 0:00:56]} 40. cxd5 {[%clk 0:01:25]}  cxd5 {[%clk 0:00:52]} 41. Ke2 {[%clk 0:01:25]}  Rxf3 {[%clk 0:00:50]} 42. Rxf3 {[%clk 0:01:25]}  Rg2+ {[%clk 0:00:50]} 43. Kf1 {[%clk 0:01:24]}  Rxb2 {[%clk 0:00:48]} 44. Rd3 {[%clk 0:01:24]}  Ke4 {[%clk 0:00:48]} 45. Rd1 {[%clk 0:01:25]}  b3 {[%clk 0:00:43]} 46. Re1+ {[%clk 0:01:25]}  Kf3 {[%clk 0:00:42]} 47. Kg1 {[%clk 0:01:25]}  Rc2 {[%clk 0:00:32]} 48. h4 {[%clk 0:01:22]}  b2 {[%clk 0:00:32]} 49. Rf1+ {[%clk 0:01:22]}  Kg3 {[%clk 0:00:31]} 50. Re1 {[%clk 0:01:12]}  f3 {[%clk 0:00:24]} 51. Rf1 {[%clk 0:01:13]}  Rg2+ {[%clk 0:00:20]} 52. Kh1 {[%clk 0:01:13]}  Rh2+ {[%clk 0:00:20]} 53. Kg1 {[%clk 0:01:14]}  f2+ {[%clk 0:00:19]} 54. Rxf2 {[%clk 0:01:14]}  Rxf2 {[%clk 0:00:18]} 55. Kh1 {[%clk 0:01:15]}  Rc2 {[%clk 0:00:16]} 56. Kg1 {[%clk 0:01:15]}  Kxh4 {[%clk 0:00:16]} 57. Kf1 {[%clk 0:01:16]}  Kg4 {[%clk 0:00:17]} 58. Ke1 {[%clk 0:01:17]}  Kf4 {[%clk 0:00:17]} 59. Kd1 {[%clk 0:01:18]}  Rh2 {[%clk 0:00:17]} 60. Ke1 {[%clk 0:01:18]}  Ke4 {[%clk 0:00:18]} 61. Kf1 {[%clk 0:01:19]}  Kxd4 {[%clk 0:00:18]} 62. Kg1 {[%clk 0:01:20]}  Rc2 {[%clk 0:00:18]} 63. Kf1 {[%clk 0:01:21]}  Kc3 {[%clk 0:00:18]} 64. Ke1 {[%clk 0:01:21]}  d4 {[%clk 0:00:19]} 65. Kd1 {[%clk 0:01:22]}  e5 {[%clk 0:00:20]} 66. Ke1 {[%clk 0:01:23]}  e4 {[%clk 0:00:21]} 67. Kf1 {[%clk 0:01:24]}  h4 {[%clk 0:00:21]} 68. Kg1 {[%clk 0:01:25]}  h3 {[%clk 0:00:22]} 0-1


[Site "https://www.chess.com"]

[Event "Titled Tuesday Blitz May 24 Late 2022"]
[White "Levine, David"]
[Black "Halak, Miklos"]
[WhiteFideId "2011611"]
[BlackFideId "726400"]
[WhiteElo "2147"]
[BlackElo "2197"]
[Result "0-1"]
[Round "11"]
[TimeControl "180+1"]
[Date "2022.05.25"]
[WhiteClock "0:02:24"]
[BlackClock "0:02:56"]

1. d4 {[%clk 0:03:00]}  Nf6 {[%clk 0:02:59]} 2. c4 {[%clk 0:03:00]}  c5 {[%clk 0:02:59]} 3. d5 {[%clk 0:03:00]}  e6 {[%clk 0:03:00]} 4. Nc3 {[%clk 0:02:58]}  exd5 {[%clk 0:03:01]} 5. cxd5 {[%clk 0:02:58]}  d6 {[%clk 0:03:02]} 6. Nf3 {[%clk 0:02:57]}  g6 {[%clk 0:03:02]} 7. e4 {[%clk 0:02:57]}  Bg7 {[%clk 0:03:03]} 8. Be2 {[%clk 0:02:57]}  O-O {[%clk 0:03:04]} 9. O-O {[%clk 0:02:57]}  Na6 {[%clk 0:03:04]} 10. Bf4 {[%clk 0:02:54]}  Nc7 {[%clk 0:03:04]} 11. h3 {[%clk 0:02:52]}  a6 {[%clk 0:03:03]} 12. a4 {[%clk 0:02:52]}  Rb8 {[%clk 0:03:02]} 13. a5 {[%clk 0:02:51]}  b5 {[%clk 0:03:02]} 14. axb6 {[%clk 0:02:51]}  Rxb6 {[%clk 0:03:03]} 15. Qc2 {[%clk 0:02:42]}  Rb4 {[%clk 0:03:01]} 16. Nd2 {[%clk 0:02:40]}  Nfxd5 {[%clk 0:02:58]} 17. Nc4 {[%clk 0:02:24]}  Nxf4 {[%clk 0:02:56]} 0-1


[Site "https://www.chess.com"]

[Event "Titled Tuesday Blitz May 24 Late 2022"]
[White "Lopez Idarraga, Daniel Eduardo"]
[Black "Golubev, Mikhail"]
[WhiteFideId "4405501"]
[BlackFideId "14100983"]
[WhiteElo "2059"]
[BlackElo "2374"]
[Result "0-1"]
[Round "11"]
[TimeControl "180+1"]
[Date "2022.05.25"]
[WhiteClock "0:01:54"]
[BlackClock "0:01:13"]

1. d4 {[%clk 0:02:52]}  Nf6 {[%clk 0:02:58]} 2. Nf3 {[%clk 0:02:51]}  d6 {[%clk 0:02:58]} 3. Nc3 {[%clk 0:02:50]}  g6 {[%clk 0:02:56]} 4. e4 {[%clk 0:02:51]}  Bg7 {[%clk 0:02:56]} 5. h3 {[%clk 0:02:51]}  O-O {[%clk 0:02:56]} 6. Be3 {[%clk 0:02:52]}  Nbd7 {[%clk 0:02:54]} 7. e5 {[%clk 0:02:52]}  Ne8 {[%clk 0:02:49]} 8. Bc4 {[%clk 0:02:50]}  Nb6 {[%clk 0:02:46]} 9. Bb3 {[%clk 0:02:50]}  c6 {[%clk 0:02:30]} 10. Qd2 {[%clk 0:02:49]}  dxe5 {[%clk 0:02:27]} 11. Nxe5 {[%clk 0:02:35]}  Nf6 {[%clk 0:02:26]} 12. O-O-O {[%clk 0:02:32]}  a5 {[%clk 0:02:24]} 13. a3 {[%clk 0:02:31]}  a4 {[%clk 0:02:20]} 14. Ba2 {[%clk 0:02:30]}  Nbd5 {[%clk 0:02:20]} 15. Nxd5 {[%clk 0:02:19]}  cxd5 {[%clk 0:02:20]} 16. Bh6 {[%clk 0:02:20]}  Ne4 {[%clk 0:02:09]} 17. Qe3 {[%clk 0:02:19]}  Bxh6 {[%clk 0:02:03]} 18. Qxh6 {[%clk 0:02:18]}  Nxf2 {[%clk 0:02:01]} 19. h4 {[%clk 0:02:18]}  Nxh1 {[%clk 0:01:59]} 20. h5 {[%clk 0:02:15]}  Ng3 {[%clk 0:01:36]} 21. hxg6 {[%clk 0:02:14]}  fxg6 {[%clk 0:01:35]} 22. Nxg6 {[%clk 0:02:15]}  Rf7 {[%clk 0:01:28]} 23. Ne5 {[%clk 0:02:11]}  Rg7 {[%clk 0:01:18]} 24. c4 {[%clk 0:02:03]}  Bf5 {[%clk 0:01:17]} 25. c5 {[%clk 0:01:54]}  e6 {[%clk 0:01:13]} 0-1


[Site "https://www.chess.com"]

[Event "Titled Tuesday Blitz May 24 Late 2022"]
[White "Mikhalsky, Vladimir"]
[Black "O`Gorman, Tom"]
[WhiteFideId "14144352"]
[BlackFideId "2508249"]
[WhiteElo "2301"]
[BlackElo "2247"]
[Result "0-1"]
[Round "11"]
[TimeControl "180+1"]
[Date "2022.05.24"]
[WhiteClock "0:00:23"]
[BlackClock "0:00:55"]

1. d4 {[%clk 0:02:58]}  Nf6 {[%clk 0:02:58]} 2. c4 {[%clk 0:02:57]}  g6 {[%clk 0:02:58]} 3. f3 {[%clk 0:02:56]}  Bg7 {[%clk 0:02:57]} 4. e4 {[%clk 0:02:57]}  O-O {[%clk 0:02:57]} 5. Nc3 {[%clk 0:02:57]}  d6 {[%clk 0:02:58]} 6. Be3 {[%clk 0:02:57]}  c5 {[%clk 0:02:58]} 7. Nge2 {[%clk 0:02:54]}  Nc6 {[%clk 0:02:58]} 8. d5 {[%clk 0:02:52]}  Ne5 {[%clk 0:02:56]} 9. Ng3 {[%clk 0:02:52]}  e6 {[%clk 0:02:55]} 10. Qd2 {[%clk 0:02:47]}  h5 {[%clk 0:02:45]} 11. Be2 {[%clk 0:02:46]}  exd5 {[%clk 0:02:44]} 12. cxd5 {[%clk 0:02:45]}  a6 {[%clk 0:02:43]} 13. a4 {[%clk 0:02:44]}  h4 {[%clk 0:02:30]} 14. Nf1 {[%clk 0:02:42]}  h3 {[%clk 0:02:30]} 15. g4 {[%clk 0:02:34]}  Bd7 {[%clk 0:02:29]} 16. Ng3 {[%clk 0:02:24]}  b5 {[%clk 0:02:29]} 17. g5 {[%clk 0:02:23]}  Ne8 {[%clk 0:02:25]} 18. f4 {[%clk 0:02:21]}  b4 {[%clk 0:02:21]} 19. Nd1 {[%clk 0:02:14]}  Ng4 {[%clk 0:02:21]} 20. Bxg4 {[%clk 0:02:03]}  Bxg4 {[%clk 0:02:22]} 21. O-O {[%clk 0:02:02]}  c4 {[%clk 0:02:15]} 22. Nf2 {[%clk 0:01:51]}  Bd7 {[%clk 0:02:12]} 23. f5 {[%clk 0:01:48]}  c3 {[%clk 0:02:09]} 24. bxc3 {[%clk 0:01:46]}  Bxc3 {[%clk 0:02:10]} 25. Qe2 {[%clk 0:01:40]}  Nc7 {[%clk 0:01:41]} 26. Nxh3 {[%clk 0:01:22]}  Qe7 {[%clk 0:01:37]} 27. Qg4 {[%clk 0:01:19]}  Nxd5 {[%clk 0:01:35]} 28. Bf2 {[%clk 0:01:04]}  Bc6 {[%clk 0:01:10]} 29. exd5 {[%clk 0:00:58]}  Bxd5 {[%clk 0:01:11]} 30. Rad1 {[%clk 0:00:57]}  Bb7 {[%clk 0:01:10]} 31. Bd4 {[%clk 0:00:55]}  Rac8 {[%clk 0:01:02]} 32. Qh4 {[%clk 0:00:31]}  Bxd4+ {[%clk 0:01:02]} 33. Qxd4 {[%clk 0:00:31]}  Rc2 {[%clk 0:01:01]} 34. Nf4 {[%clk 0:00:28]}  b3 {[%clk 0:00:56]} 35. Qxd6 {[%clk 0:00:25]}  Qe3+ {[%clk 0:00:55]} 36. Rf2 {[%clk 0:00:23]}  Qxf2# {[%clk 0:00:55]} 0-1


[Site "https://www.chess.com"]

[Event "Titled Tuesday Blitz May 24 Late 2022"]
[White "Motylev, Alexander"]
[Black "Andreikin, Dmitry"]
[WhiteFideId "4121830"]
[BlackFideId "4158814"]
[WhiteElo "2470"]
[BlackElo "2736"]
[Result "0-1"]
[Round "11"]
[TimeControl "180+1"]
[Date "2022.05.24"]
[WhiteClock "0:00:02"]
[BlackClock "0:00:10"]

1. e4 {[%clk 0:02:57]}  c5 {[%clk 0:02:58]} 2. Nf3 {[%clk 0:02:56]}  Nc6 {[%clk 0:02:57]} 3. Bb5 {[%clk 0:02:55]}  b6 {[%clk 0:02:57]} 4. c3 {[%clk 0:02:48]}  Nf6 {[%clk 0:02:56]} 5. Qe2 {[%clk 0:02:44]}  a6 {[%clk 0:02:47]} 6. Bxc6 {[%clk 0:02:36]}  dxc6 {[%clk 0:02:48]} 7. d4 {[%clk 0:02:36]}  a5 {[%clk 0:02:47]} 8. dxc5 {[%clk 0:02:31]}  Ba6 {[%clk 0:02:44]} 9. c4 {[%clk 0:02:30]}  e6 {[%clk 0:02:44]} 10. cxb6 {[%clk 0:02:22]}  Bb4+ {[%clk 0:02:44]} 11. Bd2 {[%clk 0:02:22]}  Qxb6 {[%clk 0:02:43]} 12. O-O {[%clk 0:02:22]}  O-O {[%clk 0:02:43]} 13. Bg5 {[%clk 0:02:18]}  Nd7 {[%clk 0:02:40]} 14. Rd1 {[%clk 0:02:16]}  Nc5 {[%clk 0:02:34]} 15. Nbd2 {[%clk 0:01:46]}  a4 {[%clk 0:02:32]} 16. Be3 {[%clk 0:01:29]}  Rfd8 {[%clk 0:02:27]} 17. a3 {[%clk 0:01:26]}  Ba5 {[%clk 0:02:18]} 18. Rab1 {[%clk 0:01:21]}  Qa7 {[%clk 0:02:16]} 19. Ne5 {[%clk 0:01:01]}  Rac8 {[%clk 0:01:58]} 20. Nxf7 {[%clk 0:01:00]}  Qxf7 {[%clk 0:01:51]} 21. Bxc5 {[%clk 0:01:00]}  e5 {[%clk 0:01:51]} 22. Bb4 {[%clk 0:00:56]}  Bb6 {[%clk 0:01:50]} 23. Rbc1 {[%clk 0:00:52]}  Bd4 {[%clk 0:01:44]} 24. Nf3 {[%clk 0:00:47]}  c5 {[%clk 0:01:40]} 25. Ba5 {[%clk 0:00:43]}  Rf8 {[%clk 0:01:40]} 26. Nxd4 {[%clk 0:00:30]}  cxd4 {[%clk 0:01:40]} 27. f3 {[%clk 0:00:30]}  Bxc4 {[%clk 0:01:34]} 28. Qd2 {[%clk 0:00:30]}  h6 {[%clk 0:01:30]} 29. Bb4 {[%clk 0:00:29]}  Rfe8 {[%clk 0:01:31]} 30. Rc2 {[%clk 0:00:29]}  Rc6 {[%clk 0:01:17]} 31. Rdc1 {[%clk 0:00:28]}  Rec8 {[%clk 0:01:17]} 32. Qf2 {[%clk 0:00:26]}  Qf4 {[%clk 0:01:10]} 33. Bd2 {[%clk 0:00:25]}  Qf6 {[%clk 0:01:09]} 34. h3 {[%clk 0:00:24]}  Kh7 {[%clk 0:01:08]} 35. Bb4 {[%clk 0:00:24]}  d3 {[%clk 0:01:03]} 36. Rc3 {[%clk 0:00:24]}  Qf4 {[%clk 0:01:03]} 37. Rd1 {[%clk 0:00:18]}  Bb5 {[%clk 0:00:59]} 38. Rxc6 {[%clk 0:00:18]}  Rxc6 {[%clk 0:01:00]} 39. Bc3 {[%clk 0:00:18]}  Bc4 {[%clk 0:00:53]} 40. Qd2 {[%clk 0:00:18]}  Qf6 {[%clk 0:00:49]} 41. Qe3 {[%clk 0:00:18]}  Qd6 {[%clk 0:00:45]} 42. Rd2 {[%clk 0:00:18]}  Bb5 {[%clk 0:00:39]} 43. Kh2 {[%clk 0:00:18]}  Rxc3 {[%clk 0:00:37]} 44. bxc3 {[%clk 0:00:18]}  Qxa3 {[%clk 0:00:38]} 45. Qb6 {[%clk 0:00:15]}  Qxc3 {[%clk 0:00:36]} 46. Qxb5 {[%clk 0:00:14]}  Qxd2 {[%clk 0:00:35]} 47. Qxe5 {[%clk 0:00:12]}  Qg5 {[%clk 0:00:25]} 48. Qd6 {[%clk 0:00:12]}  a3 {[%clk 0:00:14]} 49. Qxa3 {[%clk 0:00:07]}  Qe5+ {[%clk 0:00:12]} 50. g3 {[%clk 0:00:04]}  Qd4 {[%clk 0:00:10]} 51. Qc1 {[%clk 0:00:03]}  Qf2+ {[%clk 0:00:09]} 52. Kh1 {[%clk 0:00:02]}  Qxf3+ {[%clk 0:00:10]} 53. Kh2 {[%clk 0:00:02]}  Qe2+ {[%clk 0:00:10]} 0-1


[Site "https://www.chess.com"]

[Event "Titled Tuesday Blitz May 24 Late 2022"]
[White "Nakamura, Hikaru"]
[Black "Paravyan, David"]
[WhiteFideId "2016192"]
[BlackFideId "4194985"]
[WhiteElo "2850"]
[BlackElo "2569"]
[Result "1-0"]
[Round "11"]
[TimeControl "180+1"]
[Date "2022.05.24"]
[WhiteClock "0:00:36"]
[BlackClock "0:00:01"]

1. Nf3 {[%clk 0:03:00]}  Nf6 {[%clk 0:02:59]} 2. b3 {[%clk 0:03:00]}  c5 {[%clk 0:02:59]} 3. Bb2 {[%clk 0:03:00]}  Nc6 {[%clk 0:03:00]} 4. e3 {[%clk 0:03:00]}  g6 {[%clk 0:03:01]} 5. d4 {[%clk 0:02:58]}  cxd4 {[%clk 0:03:00]} 6. Nxd4 {[%clk 0:02:59]}  Nxd4 {[%clk 0:02:59]} 7. Bxd4 {[%clk 0:02:57]}  Bg7 {[%clk 0:03:00]} 8. Be2 {[%clk 0:02:57]}  O-O {[%clk 0:02:59]} 9. O-O {[%clk 0:02:57]}  b6 {[%clk 0:02:57]} 10. Bf3 {[%clk 0:02:56]}  Rb8 {[%clk 0:02:54]} 11. c4 {[%clk 0:02:56]}  Bb7 {[%clk 0:02:53]} 12. Nc3 {[%clk 0:02:54]}  d6 {[%clk 0:02:53]} 13. Bxb7 {[%clk 0:02:47]}  Rxb7 {[%clk 0:02:54]} 14. Qf3 {[%clk 0:02:47]}  Rd7 {[%clk 0:02:49]} 15. e4 {[%clk 0:02:38]}  Qa8 {[%clk 0:02:47]} 16. Rad1 {[%clk 0:02:37]}  Rfd8 {[%clk 0:02:47]} 17. Rfe1 {[%clk 0:02:36]}  Ne8 {[%clk 0:02:40]} 18. Bxg7 {[%clk 0:02:33]}  Kxg7 {[%clk 0:02:41]} 19. Nd5 {[%clk 0:02:33]}  e6 {[%clk 0:02:40]} 20. Qc3+ {[%clk 0:02:33]}  Kg8 {[%clk 0:02:40]} 21. Nf4 {[%clk 0:02:31]}  Qc6 {[%clk 0:02:37]} 22. Qe3 {[%clk 0:02:23]}  b5 {[%clk 0:02:36]} 23. cxb5 {[%clk 0:02:22]}  Qxb5 {[%clk 0:02:37]} 24. Rc1 {[%clk 0:02:22]}  a5 {[%clk 0:02:37]} 25. Ne2 {[%clk 0:02:21]}  Rc7 {[%clk 0:02:19]} 26. Rxc7 {[%clk 0:02:13]}  Nxc7 {[%clk 0:02:20]} 27. Rc1 {[%clk 0:02:13]}  Na6 {[%clk 0:02:17]} 28. Nd4 {[%clk 0:02:13]}  Qb7 {[%clk 0:02:09]} 29. Nc6 {[%clk 0:02:09]}  Ra8 {[%clk 0:01:56]} 30. Nxa5 {[%clk 0:02:08]}  Qb5 {[%clk 0:01:56]} 31. Nc4 {[%clk 0:02:07]}  Rd8 {[%clk 0:01:22]} 32. Qd4 {[%clk 0:01:48]}  e5 {[%clk 0:01:20]} 33. Qd2 {[%clk 0:01:25]}  Nc5 {[%clk 0:01:13]} 34. f3 {[%clk 0:01:25]}  Ne6 {[%clk 0:01:11]} 35. Ne3 {[%clk 0:01:21]}  Nf4 {[%clk 0:01:06]} 36. Kh1 {[%clk 0:01:21]}  Ra8 {[%clk 0:00:56]} 37. h3 {[%clk 0:01:13]}  Kg7 {[%clk 0:00:43]} 38. Qxd6 {[%clk 0:01:03]}  Rxa2 {[%clk 0:00:25]} 39. Ng4 {[%clk 0:00:58]}  Ne6 {[%clk 0:00:08]} 40. Qe7 {[%clk 0:00:49]}  h5 {[%clk 0:00:01]} 41. Qf6+ {[%clk 0:00:48]}  Kh7 {[%clk 0:00:02]} 42. Qxf7+ {[%clk 0:00:41]}  Ng7 {[%clk 0:00:02]} 43. Nf6+ {[%clk 0:00:41]}  Kh6 {[%clk 0:00:02]} 44. Ng8+ {[%clk 0:00:42]}  Kh7 {[%clk 0:00:02]} 45. Ne7 {[%clk 0:00:42]}  Qb6 {[%clk 0:00:01]} 46. Qg8+ {[%clk 0:00:35]}  Kh6 {[%clk 0:00:01]} 47. h4 {[%clk 0:00:36]} 1-0


[Site "https://www.chess.com"]

[Event "Titled Tuesday Blitz May 24 Late 2022"]
[White "Nozdrachev, Leonid"]
[Black "Roman, Rodrigo"]
[WhiteFideId "24113433"]
[BlackFideId "3701220"]
[WhiteElo "2255"]
[BlackElo "2001"]
[Result "0-1"]
[Round "11"]
[TimeControl "180+1"]
[Date "2022.05.24"]
[WhiteClock "0:00:01"]
[BlackClock "0:00:18"]

1. e4 {[%clk 0:03:00]}  c5 {[%clk 0:02:59]} 2. Bc4 {[%clk 0:02:59]}  Nc6 {[%clk 0:02:59]} 3. Nf3 {[%clk 0:02:58]}  e6 {[%clk 0:02:59]} 4. a4 {[%clk 0:02:57]}  d5 {[%clk 0:02:59]} 5. exd5 {[%clk 0:02:58]}  exd5 {[%clk 0:03:00]} 6. Ba2 {[%clk 0:02:58]}  Be6 {[%clk 0:03:00]} 7. d4 {[%clk 0:02:57]}  c4 {[%clk 0:03:00]} 8. b3 {[%clk 0:02:56]}  Nf6 {[%clk 0:02:55]} 9. bxc4 {[%clk 0:02:55]}  dxc4 {[%clk 0:02:56]} 10. Nc3 {[%clk 0:02:54]}  Bb4 {[%clk 0:02:55]} 11. Bd2 {[%clk 0:02:54]}  Qa5 {[%clk 0:02:53]} 12. Nb5 {[%clk 0:02:49]}  O-O-O {[%clk 0:02:52]} 13. O-O {[%clk 0:02:46]}  a6 {[%clk 0:02:47]} 14. Na3 {[%clk 0:02:31]}  Bxd2 {[%clk 0:02:44]} 15. Qxd2 {[%clk 0:02:09]}  Qxd2 {[%clk 0:02:42]} 16. Nxd2 {[%clk 0:02:10]}  Rxd4 {[%clk 0:02:30]} 17. Ndxc4 {[%clk 0:01:56]}  Kc7 {[%clk 0:02:28]} 18. Ne3 {[%clk 0:01:46]}  Bxa2 {[%clk 0:02:19]} 19. Rxa2 {[%clk 0:01:47]}  g6 {[%clk 0:02:17]} 20. Nac4 {[%clk 0:01:38]}  Ne4 {[%clk 0:02:09]} 21. Rb2 {[%clk 0:01:31]}  f5 {[%clk 0:02:06]} 22. Rfb1 {[%clk 0:01:29]}  Rb8 {[%clk 0:02:04]} 23. Nb6 {[%clk 0:01:21]}  Nc3 {[%clk 0:01:58]} 24. Ra1 {[%clk 0:01:07]}  f4 {[%clk 0:01:54]} 25. Ng4 {[%clk 0:00:58]}  h5 {[%clk 0:01:43]} 26. Nf6 {[%clk 0:00:52]}  Rbd8 {[%clk 0:01:31]} 27. h4 {[%clk 0:00:47]}  Nb4 {[%clk 0:01:18]} 28. a5 {[%clk 0:00:42]}  f3 {[%clk 0:01:09]} 29. gxf3 {[%clk 0:00:38]}  Rxh4 {[%clk 0:01:03]} 30. Rb3 {[%clk 0:00:34]}  Ne2+ {[%clk 0:00:56]} 31. Kg2 {[%clk 0:00:26]}  Nf4+ {[%clk 0:00:56]} 32. Kg3 {[%clk 0:00:25]}  g5 {[%clk 0:00:53]} 33. Nxh5 {[%clk 0:00:12]}  Nxh5+ {[%clk 0:00:52]} 34. Kg2 {[%clk 0:00:12]}  Nf4+ {[%clk 0:00:52]} 35. Kg3 {[%clk 0:00:11]}  Nc6 {[%clk 0:00:49]} 36. Rc3 {[%clk 0:00:02]}  Kb8 {[%clk 0:00:48]} 37. Re1 {[%clk 0:00:02]}  Nh5+ {[%clk 0:00:29]} 38. Kg2 {[%clk 0:00:02]}  Rhd4 {[%clk 0:00:18]} 39. Re4 {[%clk 0:00:01]}  Nf4+ {[%clk 0:00:18]} 40. Kg3 {[%clk 0:00:01]}  Rxe4 {[%clk 0:00:18]} 0-1


[Site "https://www.chess.com"]

[Event "Titled Tuesday Blitz May 24 Late 2022"]
[White "Peralta, Eduardo"]
[Black "Janaszak, Dawid"]
[WhiteFideId "3700062"]
[BlackFideId "1119206"]
[WhiteElo "2125"]
[BlackElo "2199"]
[Result "1/2-1/2"]
[Round "11"]
[TimeControl "180+1"]
[Date "2022.05.24"]
[WhiteClock "0:01:11"]
[BlackClock "0:01:42"]

1. Nf3 {[%clk 0:02:27]}  c5 {[%clk 0:02:49]} 2. g3 {[%clk 0:02:26]}  g6 {[%clk 0:02:49]} 3. Bg2 {[%clk 0:02:27]}  Bg7 {[%clk 0:02:50]} 4. O-O {[%clk 0:02:28]}  Nc6 {[%clk 0:02:50]} 5. c4 {[%clk 0:02:29]}  Nf6 {[%clk 0:02:50]} 6. Nc3 {[%clk 0:02:29]}  e5 {[%clk 0:02:51]} 7. d3 {[%clk 0:02:29]}  d6 {[%clk 0:02:51]} 8. a3 {[%clk 0:02:29]}  O-O {[%clk 0:02:51]} 9. Rb1 {[%clk 0:02:24]}  a5 {[%clk 0:02:49]} 10. Bg5 {[%clk 0:02:16]}  h6 {[%clk 0:02:48]} 11. Bxf6 {[%clk 0:02:16]}  Bxf6 {[%clk 0:02:49]} 12. Nd5 {[%clk 0:02:15]}  Bg7 {[%clk 0:02:50]} 13. b4 {[%clk 0:02:14]}  axb4 {[%clk 0:02:49]} 14. axb4 {[%clk 0:02:15]}  cxb4 {[%clk 0:02:45]} 15. Nd2 {[%clk 0:02:02]}  Bg4 {[%clk 0:02:35]} 16. h3 {[%clk 0:02:00]}  Be6 {[%clk 0:02:34]} 17. Nxb4 {[%clk 0:02:00]}  Qd7 {[%clk 0:02:30]} 18. Kh2 {[%clk 0:01:52]}  Kh7 {[%clk 0:02:27]} 19. Nd5 {[%clk 0:01:52]}  Ra2 {[%clk 0:02:15]} 20. Nc3 {[%clk 0:01:49]}  Ra7 {[%clk 0:02:11]} 21. Nb5 {[%clk 0:01:32]}  Ra2 {[%clk 0:02:10]} 22. Nc3 {[%clk 0:01:31]}  Ra7 {[%clk 0:02:10]} 23. Qb3 {[%clk 0:01:16]}  Nd4 {[%clk 0:02:09]} 24. Qd1 {[%clk 0:01:17]}  f5 {[%clk 0:02:02]} 25. e3 {[%clk 0:01:17]}  Nc6 {[%clk 0:02:02]} 26. Qb3 {[%clk 0:01:17]}  f4 {[%clk 0:01:57]} 27. Nb5 {[%clk 0:01:13]}  Ra5 {[%clk 0:01:52]} 28. Nc3 {[%clk 0:01:11]}  Ra7 {[%clk 0:01:48]} 29. Nb5 {[%clk 0:01:11]}  Ra5 {[%clk 0:01:45]} 30. Nc3 {[%clk 0:01:11]}  Ra7 {[%clk 0:01:42]} 1/2-1/2


[Site "https://www.chess.com"]